[Event "Titled Tuesday Blitz May 03 Late 2022"]
[White "Migot, Tangi"]
[Black "Vypkhaniuk, Ihor"]
[WhiteFideId "662445"]
[BlackFideId "14112256"]
[WhiteElo "2516"]
[BlackElo "2346"]
[Result "1/2-1/2"]
[Round "08"]
[TimeControl "180+1"]
[Date "2022.05.03"]
[WhiteClock "0:01:32"]
[BlackClock "0:00:42"]

1. e4 {[%clk 0:03:00]}  d5 {[%clk 0:02:57]} 2. exd5 {[%clk 0:03:00]}  Nf6 {[%clk 0:02:58]} 3. Nf3 {[%clk 0:03:00]}  Bg4 {[%clk 0:02:58]} 4. Be2 {[%clk 0:02:59]}  Qxd5 {[%clk 0:02:58]} 5. h3 {[%clk 0:02:57]}  Bxf3 {[%clk 0:02:57]} 6. Bxf3 {[%clk 0:02:57]}  Qe5+ {[%clk 0:02:57]} 7. Qe2 {[%clk 0:02:57]}  Qxe2+ {[%clk 0:02:56]} 8. Kxe2 {[%clk 0:02:57]}  c6 {[%clk 0:02:49]} 9. d4 {[%clk 0:02:56]}  Nbd7 {[%clk 0:02:48]} 10. c4 {[%clk 0:02:55]}  e5 {[%clk 0:02:44]} 11. dxe5 {[%clk 0:02:47]}  Nxe5 {[%clk 0:02:45]} 12. b3 {[%clk 0:02:47]}  O-O-O {[%clk 0:02:21]} 13. Be3 {[%clk 0:02:35]}  Nxf3 {[%clk 0:01:58]} 14. Kxf3 {[%clk 0:02:33]}  b6 {[%clk 0:01:55]} 15. Nd2 {[%clk 0:02:23]}  Bb4 {[%clk 0:01:55]} 16. Rad1 {[%clk 0:02:23]}  Rhe8 {[%clk 0:01:46]} 17. Nb1 {[%clk 0:02:18]}  Kb7 {[%clk 0:01:37]} 18. Bg5 {[%clk 0:01:57]}  a5 {[%clk 0:01:16]} 19. Bxf6 {[%clk 0:01:33]}  gxf6 {[%clk 0:01:15]} 20. Rxd8 {[%clk 0:01:32]}  Rxd8 {[%clk 0:01:15]} 21. Ke2 {[%clk 0:01:32]}  Re8+ {[%clk 0:01:14]} 22. Kf3 {[%clk 0:01:32]}  Rd8 {[%clk 0:01:14]} 23. Ke2 {[%clk 0:01:32]}  Re8+ {[%clk 0:00:43]} 24. Kf3 {[%clk 0:01:32]}  Rd8 {[%clk 0:00:42]} 1/2-1/2


[Site "https://www.chess.com"]

[Event "Titled Tuesday Blitz May 03 Late 2022"]
[White "Miszler, Levente"]
[Black "Zherebtsova, Alexandra"]
[WhiteFideId "763276"]
[BlackFideId "24129518"]
[WhiteElo "1966"]
[BlackElo "2025"]
[Result "0-1"]
[Round "08"]
[TimeControl "180+1"]
[Date "2022.05.03"]
[WhiteClock "0:02:24"]
[BlackClock "0:02:02"]

1. Nf3 {[%clk 0:03:00]}  d5 {[%clk 0:02:59]} 2. e3 {[%clk 0:02:58]}  g6 {[%clk 0:02:58]} 3. c4 {[%clk 0:02:55]}  c6 {[%clk 0:02:57]} 4. Nc3 {[%clk 0:02:54]}  Bg7 {[%clk 0:02:55]} 5. b3 {[%clk 0:02:53]}  e5 {[%clk 0:02:53]} 6. Bb2 {[%clk 0:02:49]}  Ne7 {[%clk 0:02:53]} 7. Be2 {[%clk 0:02:46]}  O-O {[%clk 0:02:52]} 8. O-O {[%clk 0:02:45]}  d4 {[%clk 0:02:44]} 9. exd4 {[%clk 0:02:36]}  exd4 {[%clk 0:02:43]} 10. Ne4 {[%clk 0:02:30]}  d3 {[%clk 0:02:35]} 11. Nf6+ {[%clk 0:02:30]}  Kh8 {[%clk 0:02:24]} 12. Re1 {[%clk 0:02:25]}  dxe2 {[%clk 0:02:16]} 13. Qxe2 {[%clk 0:02:25]}  Nf5 {[%clk 0:02:07]} 14. Ng5 {[%clk 0:02:24]}  Bxf6 {[%clk 0:02:02]} 0-1


[Site "https://www.chess.com"]

[Event "Titled Tuesday Blitz May 03 Late 2022"]
[White "Mohammadian, Mohammad"]
[Black "Mangialardo, Tiago Carvalho"]
[WhiteFideId "12566055"]
[BlackFideId "2130718"]
[WhiteElo "1489"]
[BlackElo "2111"]
[Result "1-0"]
[Round "08"]
[TimeControl "180+1"]
[Date "2022.05.03"]
[WhiteClock "0:01:29"]
[BlackClock "0:00:04"]

1. e4 {[%clk 0:03:00]}  e5 {[%clk 0:02:04]} 2. Nf3 {[%clk 0:02:59]}  Nc6 {[%clk 0:02:04]} 3. Bb5 {[%clk 0:02:58]}  a6 {[%clk 0:02:04]} 4. Ba4 {[%clk 0:02:58]}  Nf6 {[%clk 0:02:04]} 5. O-O {[%clk 0:02:57]}  Be7 {[%clk 0:02:02]} 6. Re1 {[%clk 0:02:56]}  d6 {[%clk 0:02:03]} 7. h3 {[%clk 0:02:50]}  O-O {[%clk 0:02:02]} 8. Bb3 {[%clk 0:02:48]}  b5 {[%clk 0:02:01]} 9. a4 {[%clk 0:02:47]}  Na5 {[%clk 0:01:53]} 10. axb5 {[%clk 0:02:44]}  axb5 {[%clk 0:01:54]} 11. c3 {[%clk 0:02:33]}  Bb7 {[%clk 0:01:47]} 12. Bc2 {[%clk 0:02:32]}  c5 {[%clk 0:01:29]} 13. b3 {[%clk 0:02:30]}  Qc7 {[%clk 0:01:07]} 14. d3 {[%clk 0:02:29]}  Rfe8 {[%clk 0:00:43]} 15. Bg5 {[%clk 0:02:26]}  h6 {[%clk 0:00:42]} 16. Bh4 {[%clk 0:02:26]}  Nd7 {[%clk 0:00:39]} 17. Bxe7 {[%clk 0:02:25]}  Rxe7 {[%clk 0:00:39]} 18. Nbd2 {[%clk 0:02:24]}  Nf6 {[%clk 0:00:32]} 19. Nf1 {[%clk 0:02:21]}  d5 {[%clk 0:00:27]} 20. Ng3 {[%clk 0:02:17]}  Rd8 {[%clk 0:00:19]} 21. Nf5 {[%clk 0:02:12]}  Re6 {[%clk 0:00:18]} 22. Qc1 {[%clk 0:02:04]}  dxe4 {[%clk 0:00:16]} 23. dxe4 {[%clk 0:02:03]}  c4 {[%clk 0:00:12]} 24. b4 {[%clk 0:01:59]}  Nc6 {[%clk 0:00:12]} 25. Ng3 {[%clk 0:01:38]}  Ne7 {[%clk 0:00:10]} 26. Rd1 {[%clk 0:01:33]}  Red6 {[%clk 0:00:04]} 27. Rxd6 {[%clk 0:01:32]}  Qxd6 {[%clk 0:00:05]} 28. Qd1 {[%clk 0:01:31]}  Qxd1+ {[%clk 0:00:04]} 29. Rxd1 {[%clk 0:01:30]}  Rxd1+ {[%clk 0:00:04]} 30. Bxd1 {[%clk 0:01:29]} 1-0


[Site "https://www.chess.com"]

[Event "Titled Tuesday Blitz May 03 Late 2022"]
[White "Moral Garcia, Serafin"]
[Black "Korchmar, Vasiliy"]
[WhiteFideId "2201925"]
[BlackFideId "24131750"]
[WhiteElo "2228"]
[BlackElo "2370"]
[Result "0-1"]
[Round "08"]
[TimeControl "180+1"]
[Date "2022.05.03"]
[WhiteClock "0:01:29"]
[BlackClock "0:01:43"]

1. e4 {[%clk 0:03:00]}  c5 {[%clk 0:03:00]} 2. Nf3 {[%clk 0:03:00]}  d6 {[%clk 0:03:00]} 3. d4 {[%clk 0:03:00]}  cxd4 {[%clk 0:03:01]} 4. Nxd4 {[%clk 0:03:01]}  Nf6 {[%clk 0:03:02]} 5. Nc3 {[%clk 0:03:01]}  Nc6 {[%clk 0:03:03]} 6. Bg5 {[%clk 0:03:01]}  Bd7 {[%clk 0:03:03]} 7. Qd2 {[%clk 0:03:01]}  a6 {[%clk 0:03:03]} 8. O-O-O {[%clk 0:03:01]}  e6 {[%clk 0:03:04]} 9. f3 {[%clk 0:03:00]}  Nxd4 {[%clk 0:03:01]} 10. Qxd4 {[%clk 0:03:00]}  Be7 {[%clk 0:03:02]} 11. Kb1 {[%clk 0:02:59]}  Qc7 {[%clk 0:02:57]} 12. g4 {[%clk 0:02:58]}  b5 {[%clk 0:02:46]} 13. Be3 {[%clk 0:02:57]}  O-O {[%clk 0:02:40]} 14. h4 {[%clk 0:02:54]}  Rfc8 {[%clk 0:02:40]} 15. Qd2 {[%clk 0:02:49]}  b4 {[%clk 0:02:37]} 16. Ne2 {[%clk 0:02:49]}  d5 {[%clk 0:02:22]} 17. e5 {[%clk 0:02:38]}  Ne8 {[%clk 0:02:16]} 18. Nd4 {[%clk 0:02:26]}  a5 {[%clk 0:02:15]} 19. f4 {[%clk 0:02:25]}  a4 {[%clk 0:02:15]} 20. g5 {[%clk 0:02:21]}  b3 {[%clk 0:02:06]} 21. cxb3 {[%clk 0:02:18]}  axb3 {[%clk 0:02:03]} 22. a3 {[%clk 0:02:15]}  Bxa3 {[%clk 0:01:51]} 23. bxa3 {[%clk 0:02:12]}  Rxa3 {[%clk 0:01:52]} 24. Rc1 {[%clk 0:02:13]}  Qa7 {[%clk 0:01:50]} 25. Ba6 {[%clk 0:01:29]}  Qxa6 {[%clk 0:01:45]} 26. Qb2 {[%clk 0:01:29]}  Ra8 {[%clk 0:01:43]} 0-1


[Site "https://www.chess.com"]

[Event "Titled Tuesday Blitz May 03 Late 2022"]
[White "Narayanan.S.L"]
[Black "Dimakiling, Oliver"]
[WhiteFideId "5058422"]
[BlackFideId "5202248"]
[WhiteElo "2494"]
[BlackElo "2426"]
[Result "1-0"]
[Round "08"]
[TimeControl "180+1"]
[Date "2022.05.03"]
[WhiteClock "0:02:16"]
[BlackClock "0:01:12"]

1. Nf3 {[%clk 0:03:00]}  g6 {[%clk 0:02:58]} 2. g3 {[%clk 0:03:00]}  Bg7 {[%clk 0:02:58]} 3. Bg2 {[%clk 0:03:01]}  e5 {[%clk 0:02:59]} 4. O-O {[%clk 0:03:01]}  d5 {[%clk 0:02:59]} 5. d3 {[%clk 0:03:00]}  Ne7 {[%clk 0:02:58]} 6. e4 {[%clk 0:03:00]}  O-O {[%clk 0:02:57]} 7. Nc3 {[%clk 0:02:57]}  d4 {[%clk 0:02:55]} 8. Ne2 {[%clk 0:02:57]}  h6 {[%clk 0:02:54]} 9. Nd2 {[%clk 0:02:53]}  c5 {[%clk 0:02:53]} 10. f4 {[%clk 0:02:54]}  Nbc6 {[%clk 0:02:52]} 11. Nf3 {[%clk 0:02:54]}  f6 {[%clk 0:02:46]} 12. Nh4 {[%clk 0:02:49]}  g5 {[%clk 0:02:42]} 13. Nf3 {[%clk 0:02:46]}  exf4 {[%clk 0:02:30]} 14. gxf4 {[%clk 0:02:46]}  g4 {[%clk 0:02:31]} 15. Nh4 {[%clk 0:02:45]}  f5 {[%clk 0:02:31]} 16. Ng3 {[%clk 0:02:44]}  Be6 {[%clk 0:02:06]} 17. exf5 {[%clk 0:02:39]}  Nxf5 {[%clk 0:02:05]} 18. Nhxf5 {[%clk 0:02:39]}  Rxf5 {[%clk 0:02:03]} 19. Qxg4 {[%clk 0:02:35]}  Rf6 {[%clk 0:01:57]} 20. f5 {[%clk 0:02:34]}  Bd5 {[%clk 0:01:57]} 21. Ne4 {[%clk 0:02:32]}  Bxe4 {[%clk 0:01:55]} 22. Bxe4 {[%clk 0:02:32]}  Kh8 {[%clk 0:01:53]} 23. Kh1 {[%clk 0:02:32]}  Qd7 {[%clk 0:01:50]} 24. Rg1 {[%clk 0:02:31]}  Raf8 {[%clk 0:01:49]} 25. Bf4 {[%clk 0:02:30]}  b5 {[%clk 0:01:28]} 26. Rg2 {[%clk 0:02:24]}  c4 {[%clk 0:01:27]} 27. Rag1 {[%clk 0:02:24]}  R8f7 {[%clk 0:01:27]} 28. Qh4 {[%clk 0:02:22]}  Rxf5 {[%clk 0:01:12]} 29. Bxh6 {[%clk 0:02:16]} 1-0


[Site "https://www.chess.com"]

[Event "Titled Tuesday Blitz May 03 Late 2022"]
[White "Papasimakopoulos, Alexandros"]
[Black "Paravyan, David"]
[WhiteFideId "4244125"]
[BlackFideId "4194985"]
[WhiteElo "2340"]
[BlackElo "2569"]
[Result "0-1"]
[Round "08"]
[TimeControl "180+1"]
[Date "2022.05.03"]
[WhiteClock "0:00:15"]
[BlackClock "0:00:12"]

1. d4 {[%clk 0:02:56]}  Nf6 {[%clk 0:02:58]} 2. c4 {[%clk 0:02:56]}  g6 {[%clk 0:02:58]} 3. Nc3 {[%clk 0:02:57]}  d5 {[%clk 0:02:59]} 4. Nf3 {[%clk 0:02:57]}  Bg7 {[%clk 0:02:59]} 5. Qb3 {[%clk 0:02:57]}  dxc4 {[%clk 0:02:59]} 6. Qxc4 {[%clk 0:02:58]}  O-O {[%clk 0:03:00]} 7. e4 {[%clk 0:02:58]}  a6 {[%clk 0:03:00]} 8. Be2 {[%clk 0:02:58]}  b5 {[%clk 0:03:01]} 9. Qb3 {[%clk 0:02:58]}  c5 {[%clk 0:03:01]} 10. dxc5 {[%clk 0:02:59]}  Be6 {[%clk 0:03:02]} 11. Qc2 {[%clk 0:02:57]}  Nbd7 {[%clk 0:03:01]} 12. c6 {[%clk 0:02:57]}  Nb8 {[%clk 0:03:01]} 13. O-O {[%clk 0:02:27]}  Nxc6 {[%clk 0:02:59]} 14. Nxb5 {[%clk 0:02:21]}  axb5 {[%clk 0:02:04]} 15. Qxc6 {[%clk 0:02:20]}  b4 {[%clk 0:01:24]} 16. Bd2 {[%clk 0:02:09]}  Qb8 {[%clk 0:00:52]} 17. e5 {[%clk 0:01:54]}  Ng4 {[%clk 0:00:47]} 18. Qe4 {[%clk 0:01:48]}  Nxe5 {[%clk 0:00:42]} 19. Qxb4 {[%clk 0:01:40]}  Bg4 {[%clk 0:00:35]} 20. Nxe5 {[%clk 0:01:25]}  Bxe2 {[%clk 0:00:34]} 21. Rfe1 {[%clk 0:01:26]}  Qxe5 {[%clk 0:00:25]} 22. Bc3 {[%clk 0:01:22]}  Qb5 {[%clk 0:00:26]} 23. Qxb5 {[%clk 0:01:19]}  Bxb5 {[%clk 0:00:26]} 24. Bxg7 {[%clk 0:01:20]}  Kxg7 {[%clk 0:00:25]} 25. Rxe7 {[%clk 0:01:21]}  Rfc8 {[%clk 0:00:26]} 26. Rb7 {[%clk 0:01:16]}  Rxa2 {[%clk 0:00:24]} 27. Re1 {[%clk 0:01:09]}  Bc4 {[%clk 0:00:18]} 28. h3 {[%clk 0:01:07]}  Rc6 {[%clk 0:00:16]} 29. Re4 {[%clk 0:00:59]}  Be6 {[%clk 0:00:16]} 30. Kh2 {[%clk 0:00:54]}  Kf6 {[%clk 0:00:16]} 31. Rf4+ {[%clk 0:00:52]}  Kg7 {[%clk 0:00:16]} 32. Re4 {[%clk 0:00:52]}  h5 {[%clk 0:00:16]} 33. h4 {[%clk 0:00:50]}  Ra5 {[%clk 0:00:15]} 34. b4 {[%clk 0:00:44]}  Rf5 {[%clk 0:00:14]} 35. f3 {[%clk 0:00:45]}  Rd6 {[%clk 0:00:14]} 36. Re2 {[%clk 0:00:31]}  Rf4 {[%clk 0:00:14]} 37. Kg3 {[%clk 0:00:30]}  Rc4 {[%clk 0:00:14]} 38. b5 {[%clk 0:00:29]}  Rb4 {[%clk 0:00:14]} 39. Rc2 {[%clk 0:00:19]}  Kf6 {[%clk 0:00:13]} 40. Rc5 {[%clk 0:00:19]}  Rb2 {[%clk 0:00:11]} 41. Rg5 {[%clk 0:00:15]}  Rdd2 {[%clk 0:00:11]} 42. Kh2 {[%clk 0:00:15]}  Bf5 {[%clk 0:00:10]} 43. Rb8 {[%clk 0:00:13]}  Rd5 {[%clk 0:00:10]} 44. b6 {[%clk 0:00:14]}  Rdb5 {[%clk 0:00:10]} 45. b7 {[%clk 0:00:14]}  Rxb7 {[%clk 0:00:10]} 46. Rxb7 {[%clk 0:00:15]}  Rxb7 {[%clk 0:00:10]} 47. g4 {[%clk 0:00:16]}  hxg4 {[%clk 0:00:08]} 48. fxg4 {[%clk 0:00:17]}  Be6 {[%clk 0:00:08]} 49. Kg3 {[%clk 0:00:15]}  Rb3+ {[%clk 0:00:09]} 50. Kg2 {[%clk 0:00:15]}  Rb4 {[%clk 0:00:09]} 51. Kg3 {[%clk 0:00:16]}  Rc4 {[%clk 0:00:10]} 52. Kf3 {[%clk 0:00:15]}  Kg7 {[%clk 0:00:10]} 53. h5 {[%clk 0:00:13]}  Kh6 {[%clk 0:00:11]} 54. Re5 {[%clk 0:00:12]}  Bxg4+ {[%clk 0:00:11]} 55. Kg3 {[%clk 0:00:13]}  Bxh5 {[%clk 0:00:12]} 56. Re3 {[%clk 0:00:13]}  Rg4+ {[%clk 0:00:12]} 57. Kh3 {[%clk 0:00:14]}  Rf4 {[%clk 0:00:12]} 58. Re7 {[%clk 0:00:14]}  Rf3+ {[%clk 0:00:12]} 59. Kh4 {[%clk 0:00:15]}  g5# {[%clk 0:00:12]} 0-1


[Site "https://www.chess.com"]

[Event "Titled Tuesday Blitz May 03 Late 2022"]
[White "Przybylski, Wojciech"]
[Black "Romanchuk, Viktor"]
[WhiteFideId "1117599"]
[BlackFideId "14109271"]
[WhiteElo "2133"]
[BlackElo "2242"]
[Result "1/2-1/2"]
[Round "08"]
[TimeControl "180+1"]
[Date "2022.05.03"]
[WhiteClock "0:00:04"]
[BlackClock "0:00:09"]

1. d4 {[%clk 0:02:59]}  d5 {[%clk 0:02:59]} 2. Nf3 {[%clk 0:02:57]}  Nf6 {[%clk 0:02:58]} 3. c4 {[%clk 0:02:56]}  c6 {[%clk 0:02:58]} 4. Nc3 {[%clk 0:02:56]}  e6 {[%clk 0:02:58]} 5. Bg5 {[%clk 0:02:55]}  h6 {[%clk 0:02:58]} 6. Bxf6 {[%clk 0:02:55]}  Qxf6 {[%clk 0:02:58]} 7. e3 {[%clk 0:02:55]}  Nd7 {[%clk 0:02:58]} 8. Qc2 {[%clk 0:02:55]}  g6 {[%clk 0:02:58]} 9. Rd1 {[%clk 0:02:53]}  Bg7 {[%clk 0:02:57]} 10. Bd3 {[%clk 0:02:51]}  dxc4 {[%clk 0:02:57]} 11. Bxc4 {[%clk 0:02:51]}  O-O {[%clk 0:02:57]} 12. O-O {[%clk 0:02:51]}  Qe7 {[%clk 0:02:57]} 13. e4 {[%clk 0:02:47]}  Rd8 {[%clk 0:02:54]} 14. e5 {[%clk 0:02:43]}  b6 {[%clk 0:02:53]} 15. Ne4 {[%clk 0:02:42]}  Rb8 {[%clk 0:02:41]} 16. Nd6 {[%clk 0:02:34]}  c5 {[%clk 0:02:41]} 17. d5 {[%clk 0:01:24]}  Nxe5 {[%clk 0:02:22]} 18. Nxe5 {[%clk 0:01:14]}  Rxd6 {[%clk 0:02:18]} 19. Nc6 {[%clk 0:01:11]}  Rxc6 {[%clk 0:02:15]} 20. dxc6 {[%clk 0:01:11]}  b5 {[%clk 0:02:13]} 21. Be2 {[%clk 0:00:54]}  Rb6 {[%clk 0:02:08]} 22. Bf3 {[%clk 0:00:48]}  Bd4 {[%clk 0:02:07]} 23. b4 {[%clk 0:00:44]}  e5 {[%clk 0:01:53]} 24. bxc5 {[%clk 0:00:44]}  Bxc5 {[%clk 0:01:53]} 25. Rfe1 {[%clk 0:00:29]}  Bf5 {[%clk 0:01:42]} 26. Qd2 {[%clk 0:00:23]}  e4 {[%clk 0:01:33]} 27. Qd8+ {[%clk 0:00:22]}  Qxd8 {[%clk 0:01:28]} 28. Rxd8+ {[%clk 0:00:22]}  Kg7 {[%clk 0:01:28]} 29. Bxe4 {[%clk 0:00:20]}  Bxe4 {[%clk 0:01:29]} 30. c7 {[%clk 0:00:17]}  Bf5 {[%clk 0:01:24]} 31. c8=Q {[%clk 0:00:16]}  Bxc8 {[%clk 0:01:23]} 32. Rxc8 {[%clk 0:00:17]}  Bd4 {[%clk 0:01:18]} 33. Rd1 {[%clk 0:00:16]}  Be5 {[%clk 0:01:10]} 34. g3 {[%clk 0:00:15]}  b4 {[%clk 0:01:06]} 35. f4 {[%clk 0:00:14]}  Bc3 {[%clk 0:01:03]} 36. Rd7 {[%clk 0:00:13]}  a5 {[%clk 0:01:02]} 37. Rcc7 {[%clk 0:00:13]}  Rf6 {[%clk 0:01:02]} 38. Kg2 {[%clk 0:00:10]}  g5 {[%clk 0:01:02]} 39. Kf3 {[%clk 0:00:09]}  gxf4 {[%clk 0:01:01]} 40. gxf4 {[%clk 0:00:10]}  a4 {[%clk 0:01:01]} 41. Rc4 {[%clk 0:00:09]}  a3 {[%clk 0:01:00]} 42. Ke4 {[%clk 0:00:08]}  Re6+ {[%clk 0:00:59]} 43. Kf3 {[%clk 0:00:08]}  Rf6 {[%clk 0:00:58]} 44. Rd1 {[%clk 0:00:08]}  Rg6 {[%clk 0:00:53]} 45. Rb1 {[%clk 0:00:06]}  Rd6 {[%clk 0:00:51]} 46. Ke4 {[%clk 0:00:06]}  Kf6 {[%clk 0:00:49]} 47. Rcxb4 {[%clk 0:00:05]}  Bxb4 {[%clk 0:00:48]} 48. Rxb4 {[%clk 0:00:05]}  Rd2 {[%clk 0:00:48]} 49. Rb6+ {[%clk 0:00:05]}  Kg7 {[%clk 0:00:48]} 50. h4 {[%clk 0:00:05]}  Rxa2 {[%clk 0:00:47]} 51. Ra6 {[%clk 0:00:04]}  Ra1 {[%clk 0:00:47]} 52. Kf5 {[%clk 0:00:05]}  Ra2 {[%clk 0:00:37]} 53. h5 {[%clk 0:00:05]}  Ra1 {[%clk 0:00:37]} 54. Ra7 {[%clk 0:00:05]}  a2 {[%clk 0:00:26]} 55. Ra8 {[%clk 0:00:04]}  Rh1 {[%clk 0:00:25]} 56. Rxa2 {[%clk 0:00:04]}  Rxh5+ {[%clk 0:00:25]} 57. Kg4 {[%clk 0:00:04]}  Rb5 {[%clk 0:00:26]} 58. Rg2 {[%clk 0:00:03]}  Kg6 {[%clk 0:00:24]} 59. Kf3+ {[%clk 0:00:03]}  Kf5 {[%clk 0:00:23]} 60. Re2 {[%clk 0:00:01]}  Rb3+ {[%clk 0:00:23]} 61. Kg2 {[%clk 0:00:01]}  f6 {[%clk 0:00:22]} 62. Rf2 {[%clk 0:00:01]}  h5 {[%clk 0:00:21]} 63. Kh2 {[%clk 0:00:01]}  h4 {[%clk 0:00:20]} 64. Rf1 {[%clk 0:00:01]}  Rb4 {[%clk 0:00:19]} 65. Kh3 {[%clk 0:00:01]}  Rxf4 {[%clk 0:00:19]} 66. Ra1 {[%clk 0:00:02]}  Kg5 {[%clk 0:00:18]} 67. Ra5+ {[%clk 0:00:02]}  f5 {[%clk 0:00:19]} 68. Ra3 {[%clk 0:00:02]}  Rg4 {[%clk 0:00:18]} 69. Rb3 {[%clk 0:00:02]}  Rd4 {[%clk 0:00:16]} 70. Ra3 {[%clk 0:00:02]}  Re4 {[%clk 0:00:16]} 71. Rb3 {[%clk 0:00:02]}  Kf4 {[%clk 0:00:16]} 72. Rb1 {[%clk 0:00:02]}  Re3+ {[%clk 0:00:15]} 73. Kg2 {[%clk 0:00:02]}  Rg3+ {[%clk 0:00:15]} 74. Kf2 {[%clk 0:00:02]}  Kg5 {[%clk 0:00:14]} 75. Rb8 {[%clk 0:00:02]}  f4 {[%clk 0:00:14]} 76. Rg8+ {[%clk 0:00:02]}  Kf5 {[%clk 0:00:14]} 77. Rh8 {[%clk 0:00:01]}  h3 {[%clk 0:00:13]} 78. Rf8+ {[%clk 0:00:01]}  Ke5 {[%clk 0:00:12]} 79. Re8+ {[%clk 0:00:01]}  Kd6 {[%clk 0:00:13]} 80. Rd8+ {[%clk 0:00:01]}  Ke6 {[%clk 0:00:12]} 81. Rf8 {[%clk 0:00:01]}  Rg4 {[%clk 0:00:10]} 82. Re8+ {[%clk 0:00:01]}  Kf5 {[%clk 0:00:10]} 83. Rh8 {[%clk 0:00:01]}  Rg3 {[%clk 0:00:09]} 84. Rf8+ {[%clk 0:00:01]}  Kg6 {[%clk 0:00:09]} 85. Rxf4 {[%clk 0:00:01]}  Ra3 {[%clk 0:00:08]} 86. Rh4 {[%clk 0:00:01]}  Kg5 {[%clk 0:00:08]} 87. Rh8 {[%clk 0:00:01]}  Kg4 {[%clk 0:00:08]} 88. Kg1 {[%clk 0:00:01]}  Ra1+ {[%clk 0:00:07]} 89. Kh2 {[%clk 0:00:01]}  Ra2+ {[%clk 0:00:07]} 90. Kh1 {[%clk 0:00:01]}  Kg3 {[%clk 0:00:07]} 91. Rg8+ {[%clk 0:00:01]}  Kf3 {[%clk 0:00:08]} 92. Rf8+ {[%clk 0:00:02]}  Kg3 {[%clk 0:00:08]} 93. Rg8+ {[%clk 0:00:02]}  Kf3 {[%clk 0:00:08]} 94. Rf8+ {[%clk 0:00:03]}  Kg4 {[%clk 0:00:09]} 95. Rg8+ {[%clk 0:00:03]}  Kh4 {[%clk 0:00:09]} 96. Rh8+ {[%clk 0:00:04]}  Kg3 {[%clk 0:00:09]} 97. Rg8+ {[%clk 0:00:04]} 1/2-1/2


[Site "https://www.chess.com"]

[Event "Titled Tuesday Blitz May 03 Late 2022"]
[White "Sargsyan, Anna M."]
[Black "D`Arruda, Ricardo D."]
[WhiteFideId "13308130"]
[BlackFideId "100692"]
[WhiteElo "2271"]
[BlackElo "2438"]
[Result "1-0"]
[Round "08"]
[TimeControl "180+1"]
[Date "2022.05.03"]
[WhiteClock "0:00:03"]
[BlackClock "0:00:02"]

1. d4 {[%clk 0:02:57]}  Nf6 {[%clk 0:02:58]} 2. c4 {[%clk 0:02:57]}  e5 {[%clk 0:02:57]} 3. dxe5 {[%clk 0:02:57]}  Ne4 {[%clk 0:02:57]} 4. Qd4 {[%clk 0:02:39]}  Bb4+ {[%clk 0:02:53]} 5. Nd2 {[%clk 0:02:34]}  Nxd2 {[%clk 0:02:50]} 6. Bxd2 {[%clk 0:02:34]}  Nc6 {[%clk 0:02:49]} 7. Qd5 {[%clk 0:02:23]}  Bxd2+ {[%clk 0:02:48]} 8. Qxd2 {[%clk 0:02:15]}  Nxe5 {[%clk 0:02:47]} 9. e3 {[%clk 0:02:16]}  d6 {[%clk 0:02:45]} 10. Qc2 {[%clk 0:02:13]}  O-O {[%clk 0:02:43]} 11. Ne2 {[%clk 0:02:13]}  Qf6 {[%clk 0:02:38]} 12. Ng3 {[%clk 0:02:11]}  Qg6 {[%clk 0:02:27]} 13. Qc3 {[%clk 0:02:07]}  Bg4 {[%clk 0:02:21]} 14. h3 {[%clk 0:02:05]}  Bd7 {[%clk 0:02:20]} 15. Be2 {[%clk 0:02:04]}  Rfe8 {[%clk 0:02:18]} 16. O-O {[%clk 0:02:01]}  a5 {[%clk 0:02:03]} 17. c5 {[%clk 0:01:58]}  dxc5 {[%clk 0:02:00]} 18. Qxc5 {[%clk 0:01:58]}  Bc6 {[%clk 0:01:59]} 19. Kh2 {[%clk 0:01:55]}  b6 {[%clk 0:01:56]} 20. Qc3 {[%clk 0:01:54]}  Re7 {[%clk 0:01:35]} 21. Rac1 {[%clk 0:01:51]}  Bd5 {[%clk 0:01:31]} 22. f4 {[%clk 0:01:37]}  Nd7 {[%clk 0:01:15]} 23. Rfd1 {[%clk 0:01:01]}  c6 {[%clk 0:01:00]} 24. Bh5 {[%clk 0:01:00]}  Qf6 {[%clk 0:00:49]} 25. e4 {[%clk 0:00:46]}  Bxa2 {[%clk 0:00:33]} 26. Qxc6 {[%clk 0:00:37]}  Qxc6 {[%clk 0:00:26]} 27. Rxc6 {[%clk 0:00:38]}  Nf6 {[%clk 0:00:18]} 28. Bf3 {[%clk 0:00:37]}  Rb8 {[%clk 0:00:17]} 29. e5 {[%clk 0:00:37]}  Ne8 {[%clk 0:00:17]} 30. Nf5 {[%clk 0:00:34]}  Rc7 {[%clk 0:00:17]} 31. Rxc7 {[%clk 0:00:29]}  Nxc7 {[%clk 0:00:18]} 32. Rd7 {[%clk 0:00:29]}  Ne6 {[%clk 0:00:19]} 33. Ne7+ {[%clk 0:00:22]}  Kf8 {[%clk 0:00:16]} 34. Nc6 {[%clk 0:00:23]}  Rc8 {[%clk 0:00:14]} 35. Kg3 {[%clk 0:00:17]}  Nc5 {[%clk 0:00:13]} 36. Ra7 {[%clk 0:00:18]}  Be6 {[%clk 0:00:12]} 37. Nd4 {[%clk 0:00:17]}  Bd7 {[%clk 0:00:12]} 38. f5 {[%clk 0:00:15]}  Nd3 {[%clk 0:00:11]} 39. Rxd7 {[%clk 0:00:14]}  Nxe5 {[%clk 0:00:11]} 40. Rb7 {[%clk 0:00:14]}  Nc4 {[%clk 0:00:09]} 41. b3 {[%clk 0:00:13]}  Nd2 {[%clk 0:00:08]} 42. Rxb6 {[%clk 0:00:13]}  h5 {[%clk 0:00:08]} 43. Bxh5 {[%clk 0:00:12]}  Rc7 {[%clk 0:00:07]} 44. f6 {[%clk 0:00:11]}  gxf6 {[%clk 0:00:06]} 45. Kf4 {[%clk 0:00:10]}  Kg7 {[%clk 0:00:07]} 46. Nf5+ {[%clk 0:00:10]}  Kh7 {[%clk 0:00:07]} 47. Rxf6 {[%clk 0:00:10]}  Nxb3 {[%clk 0:00:06]} 48. Bxf7 {[%clk 0:00:09]}  Nc5 {[%clk 0:00:04]} 49. Bg6+ {[%clk 0:00:09]}  Kg8 {[%clk 0:00:03]} 50. Rb6 {[%clk 0:00:09]}  Ne6+ {[%clk 0:00:04]} 51. Rxe6 {[%clk 0:00:08]}  Rc4+ {[%clk 0:00:04]} 52. Kg5 {[%clk 0:00:08]}  Rc8 {[%clk 0:00:04]} 53. h4 {[%clk 0:00:07]}  Ra8 {[%clk 0:00:03]} 54. h5 {[%clk 0:00:07]}  a4 {[%clk 0:00:04]} 55. Re7 {[%clk 0:00:06]}  a3 {[%clk 0:00:05]} 56. Bf7+ {[%clk 0:00:06]}  Kh8 {[%clk 0:00:04]} 57. Ba2 {[%clk 0:00:06]}  Rb8 {[%clk 0:00:04]} 58. Kh6 {[%clk 0:00:05]}  Rb6+ {[%clk 0:00:04]} 59. Re6 {[%clk 0:00:03]}  Rb2 {[%clk 0:00:02]} 60. Re8# {[%clk 0:00:03]} 1-0


[Site "https://www.chess.com"]